bitfinex-derivatives/quotes_BTCF0:USTF0_20240923
["timestamp","ask_amount","ask_price","bid_price","bid_amount"]
[1727058867181,0.37720262,63862.0,63861.0,0.06364446]
[1727058867582,0.37820262,63862.0,63861.0,0.06364446]
[1727058867992,0.4432058,63862.0,63861.0,0.06364446]
[1727058868295,0.42680318,63862.0,63861.0,0.06464446]
[1727058868682,0.42680318,63862.0,63861.0,0.06464351]
[1727058868992,0.38718158,63862.0,63861.0,0.001]
[1727058869287,0.38618158,63862.0,63861.0,0.02647815]
[1727058869491,0.38618158,63862.0,63861.0,0.06564334]
[1727058869788,0.38618158,63862.0,63861.0,0.06564343]
[1727058870988,0.42585824,63862.0,63861.0,0.06564343]
[1727058873591,0.42585824,63862.0,63861.0,0.14393443]
[1727058873779,0.06505824,63862.0,63861.0,0.19288958]
[1727058874180,0.03967666,63862.0,63861.0,0.10476924]
[1727058874381,0.02538158,63862.0,63861.0,0.23476924]
[1727058874788,0.09371714,63862.0,63861.0,0.23476924]
[1727058875188,0.09371786,63862.0,63861.0,0.23476924]
[1727058875380,0.02538158,63862.0,63861.0,0.27392816]
[1727058875581,0.09371786,63863.0,63861.0,0.27392816]
[1727058875791,0.09371786,63863.0,63862.0,0.02447583]
[1727058875989,0.05761805,63868.0,63862.0,0.28510373]
[1727058876287,0.05761805,63868.0,63865.0,0.10950237]
[1727058876489,0.07370612,63868.0,63866.0,0.14507026]
[1727058876687,0.07370612,63868.0,63867.0,0.12059447]
[1727058877685,0.07370612,63868.0,63867.0,0.2217485]
[1727058878188,0.07370612,63868.0,63867.0,0.2227485]
[1727058879494,0.07370612,63868.0,63867.0,0.2237485]
[1727058880583,0.15198812,63868.0,63867.0,0.2237485]
[1727058882891,0.2095132,63868.0,63867.0,0.002]
[1727058883091,0.33164913,63868.0,63867.0,0.002]
[1727058883594,0.33941068,63868.0,63867.0,0.002]
[1727058883992,0.21448595,63868.0,63867.0,0.002]
[1727058884295,0.078289,63863.0,63861.0,0.07829]
[1727058884500,0.078289,63863.0,63862.0,0.06364252]
[1727058884689,0.1904683,63863.0,63862.0,0.06364252]
[1727058885487,0.078289,63862.0,63861.0,0.07929]
[1727058885687,0.15030352,63862.0,63861.0,0.06464301]
[1727058885894,0.1904683,63862.0,63861.0,0.06464301]
[1727058886094,0.078291,63861.0,63858.0,0.09475496]
[1727058886304,0.1121793,63860.0,63859.0,0.06364366]
[1727058886797,0.1121793,63860.0,63859.0,0.06364325]
[1727058887600,0.1904713,63860.0,63859.0,0.06364325]
[1727058887795,0.1904713,63860.0,63859.0,0.06464325]
[1727058887796,0.19137213,63860.0,63859.0,0.06464325]
[1727058888292,0.11308013,63860.0,63859.0,0.14293625]
[1727058888493,0.11308013,63860.0,63859.0,0.19189025]
[1727058888494,0.06650035,63860.0,63859.0,0.19189025]
[1727058888996,0.11029251,63860.0,63859.0,0.19189005]
[1727058889196,0.17679286,63860.0,63859.0,0.10477117]
[1727058889897,0.17679286,63860.0,63859.0,0.10476972]
[1727058891001,0.0455,63866.0,63859.0,0.465862]
[1727058891300,0.078287,63864.0,63863.0,0.10947716]
[1727058891602,0.078287,63864.0,63863.0,0.47056944]
[1727058891988,0.078287,63864.0,63863.0,0.38556936]
[1727058893316,0.0455,63866.0,63863.0,0.38556936]
[1727058893508,0.123786,63866.0,63865.0,0.10949829]
[1727058893800,0.123786,63866.0,63865.0,0.47059057]
[1727058894187,0.123786,63866.0,63865.0,0.24576239]
[1727058894595,0.15384962,63868.0,63865.0,0.24576239]
[1727058894596,0.46293162,63868.0,63865.0,0.24576239]
[1727058894899,0.46293162,63868.0,63866.0,0.24576189]
[1727058895200,0.46293162,63868.0,63864.0,0.078287]
[1727058895201,0.46293162,63868.0,63867.0,0.22128541]
[1727058897495,0.46293162,63868.0,63867.0,0.22228541]
[1727058897907,0.57542097,63868.0,63867.0,0.002]
[1727058898111,0.70032386,63868.0,63867.0,0.002]
[1727058898300,1.12342297,63868.0,63867.0,0.002]
[1727058899902,0.65370297,63868.0,63867.0,0.002]
[1727058900900,0.58784489,63868.0,63867.0,0.002]
[1727058901108,0.65338938,63868.0,63867.0,0.002]
[1727058901605,0.78338938,63868.0,63867.0,0.002]
[1727058901813,0.57510738,63868.0,63867.0,0.002]
[1727058902104,0.57510738,63868.0,63867.0,0.1047596]
[1727058902105,0.54223627,63868.0,63867.0,0.1047596]
[1727058902809,0.54223627,63868.0,63867.0,0.080283]
[1727058903106,0.62051827,63868.0,63867.0,0.080283]
[1727058904104,0.62051827,63868.0,63867.0,0.002]
[1727058904307,0.75051827,63868.0,63867.0,0.002]
[1727058905007,0.75051827,63868.0,63855.0,0.0037]
[1727058905008,0.84400634,63868.0,63855.0,0.0037]
[1727058905211,0.21888429,63861.0,63859.0,0.078293]
[1727058905409,0.38423249,63860.0,63859.0,0.078293]
[1727058906098,0.078292,63860.0,63859.0,0.56502619]
[1727058906299,0.158292,63860.0,63859.0,0.56502619]
[1727058907300,0.158292,63860.0,63859.0,0.56602619]
[1727058907501,0.078292,63860.0,63859.0,0.56602619]
[1727058907701,0.158292,63860.0,63859.0,0.56602619]
[1727058908323,0.079292,63860.0,63859.0,0.56702619]
[1727058908808,0.001,63860.0,63859.0,0.56702619]
[1727058908998,0.001,63860.0,63859.0,0.44192743]
[1727058909203,0.001,63860.0,63859.0,0.46640542]
[1727058909803,0.001,63860.0,63859.0,0.62400875]
[1727058909999,0.001,63860.0,63859.0,0.46517809]
[1727058910503,0.001,63860.0,63859.0,0.38688509]
[1727058911615,0.001,63860.0,63859.0,0.38688536]
[1727058911814,0.001,63860.0,63859.0,0.47500731]
[1727058912910,0.08,63867.0,63859.0,0.47500731]
[1727058913115,0.25567182,63867.0,63860.0,0.11260021]
[1727058913307,0.07829,63862.0,63861.0,0.11260021]
[1727058913613,0.14461266,63862.0,63861.0,0.11260021]
[1727058914201,0.14461266,63862.0,63861.0,0.1125988]
[1727058914401,0.14459932,63862.0,63861.0,0.1135988]
[1727058915010,0.14459932,63862.0,63861.0,0.1145988]
[1727058915522,0.14458522,63862.0,63861.0,0.1145988]
[1727058916414,0.02538124,63862.0,63861.0,0.1145988]
[1727058916611,0.10538124,63867.0,63861.0,0.1145988]
[1727058916810,0.06635459,63866.0,63862.0,0.1125988]
[1727058917114,0.06635459,63865.0,63863.0,0.11259785]
[1727058917317,0.14464259,63864.0,63861.0,0.002]
[1727058917520,0.14464259,63864.0,63862.0,0.11259578]
[1727058917521,0.06635459,63863.0,63862.0,0.11259578]
[1727058918014,0.06635459,63863.0,63862.0,0.11359578]
[1727058918216,0.02538124,63863.0,63862.0,0.11359578]
[1727058918408,0.02538066,63863.0,63862.0,0.11359578]
[1727058919221,0.1036687,63863.0,63862.0,0.11359578]
[1727058919521,0.14460323,63863.0,63862.0,0.11259578]
[1727058919717,0.14460323,63863.0,63862.0,0.11359578]
[1727058920648,0.14460323,63863.0,63862.0,0.11459578]
[1727058920816,0.14460323,63863.0,63862.0,0.11459696]
[1727058921114,0.078288,63863.0,63862.0,0.44444193]
[1727058921314,0.158288,63863.0,63862.0,0.44444193]
[1727058921824,0.078288,63863.0,63862.0,0.44444193]
[1727058922023,0.158288,63863.0,63862.0,0.44444193]
[1727058922522,0.158288,63863.0,63862.0,0.33487075]
[1727058923119,0.158288,63863.0,63862.0,0.44444193]
[1727058923518,0.158288,63863.0,63862.0,0.33487075]
[1727058924431,0.439085,63866.0,63862.0,0.66186864]
[1727058924634,0.439085,63866.0,63864.0,0.078287]
[1727058924928,0.439085,63866.0,63863.0,0.58158148]
[1727058924929,0.439084,63866.0,63865.0,0.22027379]
[1727058925114,0.439084,63866.0,63865.0,0.33286574]
[1727058925316,0.01608807,63868.0,63865.0,0.33286574]
[1727058925516,0.078283,63867.0,63866.0,0.33286439]
[1727058925820,0.158283,63867.0,63866.0,0.25943621]
[1727058926011,0.158283,63867.0,63866.0,0.22027379]
[1727058926215,0.078283,63867.0,63866.0,0.22027379]
[1727058926430,0.156566,63867.0,63866.0,0.22027379]
[1727058926622,1.306286,63867.0,63866.0,0.22027379]
[1727058927017,1.306286,63867.0,63866.0,0.22127379]
[1727058927217,0.706286,63867.0,63866.0,0.22127379]
[1727058927637,0.706286,63867.0,63866.0,0.22227379]
[1727058928122,0.706286,63867.0,63866.0,0.10249162]
[1727058928520,0.706286,63867.0,63866.0,0.10166166]
[1727058928717,1.306286,63867.0,63866.0,0.10166166]
[1727058928913,0.01608807,63868.0,63859.0,0.09393608]
[1727058928914,0.078292,63860.0,63859.0,0.09393608]
[1727058929118,0.078299,63854.0,63853.0,0.0037]
[1727058929413,0.4408,63854.0,63852.0,0.00234901]
[1727058929918,0.08,63854.0,63852.0,0.00234901]
[1727058930122,0.0783,63853.0,63852.0,0.00234901]
[1727058932717,0.0793,63853.0,63852.0,0.00234901]
[1727058933422,0.5201,63853.0,63852.0,0.00234901]
[1727058934221,0.1593,63853.0,63852.0,0.06600286]
[1727058934529,0.5984,63853.0,63852.0,0.00234901]
[1727058934715,0.5984,63853.0,63844.0,0.3645]
[1727058934716,0.07831,63845.0,63844.0,0.0037]
[1727058934920,0.07831,63845.0,63844.0,0.0636604]
[1727058934921,0.51911,63845.0,63844.0,0.0636604]
[1727058935137,0.078315,63841.0,63840.0,0.078316]
[1727058935423,0.078315,63841.0,63840.0,0.14197943]
[1727058935424,0.158315,63841.0,63840.0,0.14197943]
[1727058937132,0.15763,63841.0,63840.0,0.06366343]
[1727058937425,0.15763,63841.0,63831.0,0.0037]
[1727058937426,0.078318,63839.0,63837.0,0.06250761]
[1727058937625,0.078324,63834.0,63833.0,0.06250761]
[1727058937818,0.078324,63834.0,63830.0,0.08067894]
[1727058937819,0.078325,63833.0,63832.0,0.06250761]
[1727058938020,0.078321,63836.0,63831.0,0.06250761]
[1727058938021,0.078326,63832.0,63831.0,0.06250761]
[1727058938232,0.078327,63831.0,63830.0,0.06485755]
[1727058938619,0.078327,63831.0,63830.0,0.02683967]
[1727058938825,0.078327,63831.0,63830.0,0.07366518]
[1727058939426,0.078327,63831.0,63830.0,0.00234994]
[1727058940232,0.078327,63831.0,63830.0,0.00634994]
[1727058940432,0.439127,63831.0,63830.0,0.007]
[1727058940620,0.078332,63827.0,63821.0,0.05052551]
[1727058940932,0.078341,63820.0,63818.0,0.12516851]
[1727058941624,0.078341,63820.0,63818.0,0.078343]
[1727058942533,0.08,63820.0,63816.0,0.09262551]
[1727058942732,0.08,63820.0,63816.0,0.0458]
[1727058943030,0.02513305,63817.0,63816.0,0.0458]
[1727058943235,0.002,63820.0,63818.0,0.019]
[1727058943427,0.158342,63819.0,63818.0,0.019]
[1727058943825,0.158342,63819.0,63818.0,0.10800856]
[1727058944031,0.158342,63819.0,63816.0,0.0528]
[1727058944235,0.158342,63819.0,63817.0,0.09709519]
[1727058944236,0.078342,63819.0,63817.0,0.09709519]
[1727058944534,0.078342,63819.0,63816.0,0.0528]
[1727058944731,0.078342,63819.0,63817.0,0.09705735]
[1727058944932,0.078344,63818.0,63816.0,0.0528]
[1727058945633,0.078344,63818.0,63816.0,0.0488]
[1727058946338,0.078344,63818.0,63816.0,0.0458]
[1727058946535,0.078344,63818.0,63817.0,0.09685809]
[1727058946841,0.078344,63818.0,63817.0,0.09689276]
[1727058947038,0.078344,63818.0,63817.0,0.09694817]
[1727058947335,0.078344,63818.0,63817.0,0.09695939]
[1727058947729,0.078339,63822.0,63817.0,0.09695939]
[1727058947933,0.09604316,63825.0,63821.0,0.06220006]
[1727058948239,0.17437816,63825.0,63824.0,0.04665005]
[1727058949633,0.17937816,63825.0,63824.0,0.04665005]
[1727058951141,0.54717816,63825.0,63824.0,0.04765005]
[1727058952532,0.54717816,63825.0,63824.0,0.001]
[1727058953039,0.54717816,63825.0,63824.0,0.04765422]
[1727058953638,0.54717816,63825.0,63824.0,0.001]
[1727058955643,0.18637816,63825.0,63824.0,0.001]
[1727058955840,0.18637816,63825.0,63824.0,0.06325614]
[1727058956141,0.54717816,63825.0,63824.0,0.001]
[1727058956540,0.54717816,63825.0,63824.0,0.06325614]
[1727058957645,0.54717816,63825.0,63824.0,0.001]
[1727058958538,0.46717816,63825.0,63824.0,0.001]
[1727058958743,0.54717816,63825.0,63824.0,0.001]
[1727058959443,0.18637816,63825.0,63824.0,0.001]
[1727058959641,0.54717816,63825.0,63824.0,0.07892667]
[1727058960550,0.18637816,63825.0,63824.0,0.17619054]
[1727058960750,0.54717816,63825.0,63824.0,0.17619054]
[1727058961251,0.54717816,63825.0,63824.0,0.09826387]
[1727058961837,0.18637816,63825.0,63824.0,0.09826387]
[1727058962043,0.54717816,63825.0,63824.0,0.09826387]
[1727058962844,0.18637816,63825.0,63824.0,0.09826387]
[1727058963152,0.50014991,63825.0,63824.0,0.09826387]
[1727058963546,0.13934991,63825.0,63824.0,0.09826387]
[1727058963746,0.50014991,63825.0,63824.0,0.09826387]
[1727058964148,0.49848491,63825.0,63824.0,0.09826387]
[1727058964352,0.59423742,63825.0,63824.0,0.09808794]
[1727058964557,0.59423742,63825.0,63824.0,0.2139012]
[1727058965151,0.51590242,63825.0,63824.0,0.2139012]
[1727058965842,0.012,63825.0,63824.0,0.2922372]
[1727058966045,0.3608,63830.0,63829.0,0.07833]
[1727058966353,0.3608,63830.0,63829.0,0.50513362]
[1727058966551,0.3608,63830.0,63829.0,0.65749171]
[1727058966756,0.00235079,63833.0,63832.0,0.078326]
[1727058966955,0.078316,63841.0,63832.0,0.78760362]
[1727058967253,0.3608,63842.0,63839.0,0.18782083]
[1727058967453,0.08,63840.0,63839.0,0.078317]
[1727058967650,0.08,63840.0,63839.0,0.42283512]
[1727058967844,0.08,63840.0,63839.0,0.34451812]
[1727058968058,0.087325,63833.0,63832.0,0.001]
[1727058968247,0.606451,63833.0,63832.0,0.11530043]
[1727058968747,0.606451,63833.0,63832.0,0.09484845]
[1727058968942,0.606451,63833.0,63832.0,0.001]
[1727058969550,0.606451,63833.0,63832.0,0.002]
[1727058969747,0.597451,63833.0,63832.0,0.001]
[1727058970356,0.647451,63833.0,63832.0,0.002]
[1727058970655,0.647451,63833.0,63832.0,0.11664427]
[1727058971543,0.647451,63833.0,63832.0,0.002]
[1727058971748,0.647451,63833.0,63832.0,0.0958572]
[1727058973151,0.647451,63833.0,63832.0,0.002]
[1727058973956,0.53334122,63833.0,63832.0,0.002]
[1727058974253,0.66334122,63833.0,63832.0,0.002]
[1727058975455,0.66334122,63833.0,63832.0,0.001]
[1727058975647,0.66634122,63833.0,63832.0,0.001]
[1727058975849,0.58801522,63833.0,63832.0,0.001]
[1727058976051,0.66634022,63833.0,63832.0,0.001]
[1727058976549,0.58801522,63833.0,63832.0,0.001]
[1727058976959,0.66934022,63833.0,63832.0,0.001]
[1727058977154,0.59101522,63833.0,63832.0,0.001]
[1727058977367,0.078334,63826.0,63825.0,0.18780393]
[1727058977661,0.078334,63826.0,63825.0,0.21750801]
[1727058978356,0.078334,63826.0,63825.0,0.32697698]
[1727058978545,0.080334,63826.0,63825.0,0.32697698]
[1727058978746,0.080334,63826.0,63825.0,0.10946893]
[1727058978949,0.080334,63826.0,63825.0,0.1339602]
[1727058978950,0.081334,63826.0,63825.0,0.1339602]
[1727058979352,0.003,63826.0,63825.0,0.17314536]
[1727058979554,0.01589022,63833.0,63825.0,0.64318536]
[1727058979761,0.078326,63833.0,63831.0,0.439127]
[1727058980057,0.00785361,63837.0,63832.0,0.07209127]
[1727058980358,0.078316,63840.0,63833.0,0.06367186]
[1727058980562,0.078316,63840.0,63836.0,0.078321]
[1727058980752,0.078316,63840.0,63837.0,0.06366545]
[1727058981063,0.078316,63840.0,63838.0,0.06366545]
[1727058981364,0.078316,63840.0,63839.0,0.02448671]
[1727058981564,0.078316,63840.0,63839.0,0.06366458]
[1727058981862,0.081316,63840.0,63839.0,0.06366458]
[1727058982248,0.083316,63840.0,63839.0,0.06366458]
[1727058982957,0.083316,63840.0,63839.0,0.50278258]
[1727058982958,0.005,63840.0,63839.0,0.50278258]
[1727058983375,0.002,63840.0,63839.0,0.50278258]
[1727058983571,0.002,63840.0,63839.0,1.57270258]
[1727058983863,0.002,63840.0,63839.0,1.71597118]
[1727058984065,0.01612839,63847.0,63843.0,0.078313]
[1727058984364,0.00092,63849.0,63847.0,0.078307]
[1727058984665,0.078301,63853.0,63848.0,0.02448671]
[1727058984869,0.09443055,63853.0,63849.0,0.02448671]
[1727058985049,0.09443055,63853.0,63850.0,0.02448671]
[1727058985357,0.09443055,63853.0,63847.0,0.078307]
[1727058985358,0.09443055,63853.0,63851.0,0.02448671]
[1727058985558,0.09443055,63853.0,63847.0,0.078307]
[1727058985765,0.09443055,63853.0,63848.0,0.02448213]
[1727058985957,0.09443055,63853.0,63849.0,0.02448213]
[1727058986154,0.09443055,63853.0,63850.0,0.02448213]
[1727058986360,0.09443055,63853.0,63845.0,0.3608]
[1727058986661,0.09443055,63853.0,63846.0,0.06365291]
[1727058986863,0.001,63849.0,63847.0,0.10378889]
[1727058987168,0.04842537,63853.0,63848.0,0.02448189]
[1727058987359,0.05042537,63853.0,63849.0,0.02548189]
[1727058987559,0.05142537,63853.0,63849.0,0.001]
[1727058987860,0.01912955,63853.0,63849.0,0.001]
[1727058988053,0.01912955,63853.0,63847.0,0.09509804]
[1727058988054,0.01712955,63853.0,63852.0,0.078302]
[1727058988658,0.01712955,63853.0,63851.0,0.078302]
[1727058988859,0.13,63852.0,63851.0,0.078302]
[1727058989056,0.13,63852.0,63849.0,0.001]
[1727058989755,0.208303,63852.0,63849.0,0.001]
[1727058990359,0.208303,63852.0,63849.0,0.002]
[1727058990555,0.078303,63851.0,63849.0,0.001]
[1727058991266,0.078304,63850.0,63849.0,0.001]
[1727058991462,0.078304,63850.0,63849.0,0.002]
[1727058992567,0.078304,63850.0,63849.0,0.001]
[1727058992768,0.078304,63850.0,63849.0,0.002]
[1727058994257,0.078304,63850.0,63849.0,0.001]
[1727058994455,0.002,63850.0,63849.0,0.002]
[1727058995066,0.002,63850.0,63849.0,0.080305]
[1727058995270,0.002,63850.0,63849.0,0.12704874]
[1727058995566,0.002,63850.0,63849.0,0.17512374]
[1727058996765,0.002,63850.0,63849.0,0.26861123]
[1727058996966,0.002,63850.0,63849.0,0.17512374]
[1727058998072,0.002,63850.0,63849.0,0.26861123]
[1727058998456,0.002,63850.0,63849.0,0.26853607]
[1727058999662,0.01571989,63869.0,63849.0,1.40843929]
[1727058999863,0.01151989,63869.0,63860.0,0.09347205]
[1727059000163,0.01151989,63869.0,63854.0,0.4908]
[1727059000164,0.02411924,63869.0,63864.0,0.09347205]
[1727059000372,0.02411924,63869.0,63865.0,0.09474358]
[1727059000560,0.02411924,63869.0,63866.0,0.09474358]
[1727059000763,0.10240024,63869.0,63866.0,0.09474358]
[1727059001168,0.10240024,63869.0,63866.0,0.17259696]
[1727059001471,0.002,63867.0,63866.0,0.17259696]
[1727059001958,0.10240024,63869.0,63866.0,0.09474358]
[1727059001959,0.13,63868.0,63866.0,0.09474358]
[1727059002155,0.10240024,63869.0,63865.0,0.001]
[1727059002156,0.10240024,63869.0,63867.0,0.17205968]
[1727059002363,0.3608,63875.0,63874.0,0.078275]
[1727059002672,0.439073,63875.0,63874.0,0.07785287]
[1727059002862,0.569073,63875.0,63873.0,0.07785287]
[1727059003561,0.569073,63875.0,63868.0,0.078282]
[1727059003764,0.569073,63875.0,63874.0,0.001]
[1727059004368,0.078275,63874.0,63873.0,0.001]
[1727059004963,0.078275,63874.0,63868.0,0.079282]
[1727059005362,0.078275,63874.0,63868.0,0.078282]
[1727059005565,0.078275,63874.0,63873.0,0.001]
[1727059006566,0.078275,63874.0,63873.0,0.002]
[1727059007167,0.078275,63874.0,63873.0,0.001]
[1727059007875,0.078275,63874.0,63873.0,0.002]
[1727059008965,0.208275,63874.0,63873.0,0.002]
[1727059009771,0.28655,63874.0,63873.0,0.002]
[1727059009961,0.31192929,63874.0,63873.0,0.002]
[1727059010166,0.28655,63874.0,63873.0,0.002]
[1727059010478,0.15655,63874.0,63873.0,0.002]
[1727059010677,0.28655,63874.0,63873.0,0.002]
[1727059012269,0.23655,63874.0,63873.0,0.002]
[1727059012867,0.23655,63874.0,63873.0,0.06437199]
[1727059013171,0.23655,63874.0,63873.0,0.002]
[1727059013967,0.23655,63874.0,63873.0,0.06437199]
[1727059014269,0.23655,63874.0,63873.0,0.002]
[1727059014573,0.23655,63874.0,63873.0,0.06437199]
[1727059014773,0.54968,63874.0,63867.0,0.07785287]
[1727059014974,0.3608,63875.0,63866.0,0.07785287]
[1727059014975,0.078283,63867.0,63866.0,0.07785287]
[1727059015273,0.078283,63867.0,63866.0,0.09456956]
[1727059015577,0.204783,63867.0,63866.0,0.09456956]
[1727059016477,0.204783,63867.0,63866.0,0.17256286]
[1727059016777,0.205783,63867.0,63866.0,0.17323617]
[1727059017172,0.205783,63867.0,63866.0,0.17324488]
[1727059017681,0.2256242,63867.0,63866.0,0.17324488]
[1727059017983,0.2256242,63867.0,63866.0,0.17424488]
[1727059018164,0.2256242,63867.0,63866.0,0.17430963]
[1727059018165,0.3039072,63867.0,63866.0,0.17430963]
[1727059018576,0.3039072,63867.0,63866.0,0.002]
[1727059019174,0.2239072,63867.0,63866.0,0.002]
[1727059019377,0.3039072,63867.0,63866.0,0.002]
[1727059022272,0.6647072,63867.0,63866.0,0.002]
[1727059023069,0.079283,63867.0,63866.0,0.17453589]
[1727059023382,0.4408,63878.0,63866.0,0.20834758]
[1727059023587,0.3608,63878.0,63877.0,0.07804399]
[1727059023776,0.3608,63878.0,63877.0,0.09422284]
[1727059024081,0.43907,63878.0,63877.0,0.09422284]
[1727059025473,0.43907,63878.0,63871.0,0.078278]
[1727059025474,0.46444519,63878.0,63871.0,0.078278]
[1727059025669,0.09358782,63875.0,63874.0,0.078275]
[1727059025974,0.09358782,63875.0,63874.0,0.18274716]
[1727059025975,0.02537519,63875.0,63874.0,0.18274716]
[1727059026280,0.02537519,63875.0,63874.0,0.02447216]
[1727059026479,0.02537519,63877.0,63874.0,0.02447216]
[1727059026689,0.02537519,63877.0,63870.0,0.3608]
[1727059026690,0.02537519,63876.0,63875.0,0.02447216]
[1727059027369,0.02537519,63877.0,63875.0,0.02447216]
[1727059027680,0.02537519,63876.0,63874.0,0.002]
[1727059027985,0.13,63876.0,63875.0,0.02447162]
[1727059028173,0.078273,63875.0,63874.0,0.002]
[1727059028481,0.28152678,63875.0,63874.0,0.002]
[1727059028669,0.15152678,63875.0,63874.0,0.002]
[1727059028870,0.25615102,63875.0,63874.0,0.002]
[1727059029075,0.28151205,63875.0,63874.0,0.001]
[1727059029277,0.43403905,63875.0,63859.0,0.125093]
[1727059029475,0.13,63864.0,63861.0,0.0037]
[1727059029679,0.13,63864.0,63859.0,0.125093]
[1727059029680,0.09369276,63862.0,63859.0,0.125093]
[1727059029883,0.11907072,63861.0,63860.0,0.02447726]
[1727059030272,0.0253771,63861.0,63860.0,0.02447726]
[1727059030794,0.09368591,63861.0,63860.0,0.02447726]
[1727059031779,0.09368591,63861.0,63859.0,0.06644902]
[1727059031977,0.09368591,63861.0,63860.0,0.02447768]
[1727059032178,0.0253771,63861.0,63860.0,0.02447768]
[1727059032483,0.09368591,63862.0,63860.0,0.02447768]
[1727059032685,0.09368591,63862.0,63861.0,0.02447751]
[1727059032686,0.01998867,63862.0,63861.0,0.02447751]
[1727059032979,0.3608,63867.0,63854.0,0.19443462]
[1727059032980,0.13,63861.0,63854.0,0.19443462]
[1727059033182,0.4908,63855.0,63854.0,0.19443462]
[1727059033375,0.56357069,63855.0,63854.0,0.19443462]
[1727059033581,0.4908,63855.0,63854.0,0.28975946]
[1727059034387,0.569098,63855.0,63854.0,0.28975946]
[1727059035282,0.569098,63855.0,63854.0,0.29175946]
[1727059035681,0.58882549,63855.0,63854.0,0.29575946]
[1727059036191,0.58882549,63855.0,63854.0,0.29375946]
[1727059036485,0.58882549,63855.0,63854.0,0.28975946]
[1727059037984,0.58882549,63855.0,63854.0,0.28968088]
[1727059038792,0.58882549,63855.0,63854.0,0.09524626]
[1727059038979,0.58882549,63855.0,63845.0,0.0936539]
[1727059038980,0.74132749,63855.0,63845.0,0.0936539]
[1727059039180,0.43911,63846.0,63840.0,0.082016]
[1727059039382,0.43911,63846.0,63841.0,0.11385827]
[1727059039586,0.43911,63846.0,63842.0,0.11385827]
[1727059039883,0.43911,63846.0,63843.0,0.02448458]
[1727059040081,0.43911,63846.0,63845.0,0.008]
[1727059040278,0.43911,63846.0,63845.0,0.015]
[1727059041286,0.3608,63846.0,63845.0,0.015]
[1727059041590,0.078302,63852.0,63845.0,0.03948365]
[1727059041776,0.078305,63850.0,63846.0,0.02448365]
[1727059041982,0.3608,63848.0,63845.0,0.015]
[1727059042175,0.078308,63847.0,63845.0,0.008]
[1727059042388,0.078311,63845.0,63842.0,0.008]
[1727059042690,0.078311,63845.0,63843.0,0.02448538]
[1727059042890,0.078312,63844.0,63842.0,0.009]
[1727059043081,0.208312,63844.0,63842.0,0.009]
[1727059043284,0.13,63844.0,63842.0,0.009]
[1727059043588,0.078316,63840.0,63839.0,0.0463]
[1727059043784,0.078316,63840.0,63839.0,0.181175]
[1727059043986,0.078316,63840.0,63839.0,0.07078572]
[1727059044584,0.078316,63840.0,63839.0,0.07078573]
[1727059045388,0.439116,63840.0,63839.0,0.0463]
[1727059045588,0.439116,63840.0,63839.0,0.07078646]
[1727059045892,0.439116,63840.0,63839.0,0.07078645]
[1727059046089,0.439116,63840.0,63839.0,0.0463]
[1727059046289,0.440116,63840.0,63839.0,0.0463]
[1727059046488,0.443116,63840.0,63839.0,0.0463]
[1727059047000,0.078329,63830.0,63828.0,0.0037]
[1727059047295,0.078336,63824.0,63821.0,0.0457]
[1727059047495,0.3608,63823.0,63821.0,0.0457]
[1727059049292,0.439137,63823.0,63821.0,0.0457]
[1727059049493,0.208338,63822.0,63821.0,0.0457]
[1727059049690,0.078343,63819.0,63815.0,0.36315038]
[1727059050400,0.078343,63818.0,63815.0,0.36315038]
[1727059051687,0.078343,63818.0,63815.0,0.00235038]
[1727059052094,0.078343,63818.0,63815.0,0.01235038]
[1727059052491,0.078343,63818.0,63817.0,0.04662949]
[1727059053591,0.078343,63818.0,63815.0,0.02135038]
[1727059053592,0.078343,63818.0,63816.0,0.04662949]
[1727059053790,0.078343,63818.0,63817.0,0.015]
[1727059053991,0.208343,63818.0,63817.0,0.015]
[1727059054900,0.302543,63818.0,63817.0,0.015]
[1727059055296,0.302543,63818.0,63817.0,0.007]
[1727059055604,0.078345,63817.0,63816.0,0.017]
[1727059056105,0.078346,63816.0,63815.0,0.00235038]
[1727059056798,0.078353,63810.0,63809.0,0.04662949]
[1727059056989,0.078353,63810.0,63807.0,0.04662949]
[1727059056990,0.078354,63809.0,63807.0,0.04662949]
[1727059057195,0.13,63808.0,63807.0,0.04662949]
[1727059057394,0.078363,63802.0,63799.0,0.3608]
[1727059057594,0.13,63808.0,63800.0,0.09359228]
[1727059057791,0.3608,63806.0,63801.0,0.09359228]
[1727059057995,0.30592092,63806.0,63803.0,0.078362]
[1727059058296,0.30592092,63806.0,63804.0,0.07836]
[1727059058697,0.38427992,63806.0,63799.0,0.439166]
[1727059058907,0.38427992,63806.0,63800.0,0.09265545]
[1727059059096,0.38427992,63806.0,63801.0,0.01]
[1727059059298,0.38427992,63806.0,63803.0,0.009]
[1727059059701,0.38427992,63806.0,63804.0,0.005]
[1727059060103,0.38427992,63806.0,63800.0,0.088364]
[1727059060411,0.38427992,63806.0,63801.0,0.10061183]
[1727059060703,0.078352,63812.0,63807.0,0.078357]
[1727059060909,0.078352,63812.0,63810.0,0.04664565]
[1727059061110,0.08600667,63816.0,63811.0,0.09204565]
[1727059061307,0.13,63817.0,63812.0,0.04664565]
[1727059061510,0.13,63817.0,63811.0,0.0454]
[1727059061511,0.13786355,63817.0,63813.0,0.04664565]
[1727059061703,0.13786355,63817.0,63812.0,0.04664565]
[1727059061704,0.078348,63814.0,63812.0,0.04664565]
[1727059062611,0.078348,63814.0,63813.0,0.04664565]
[1727059063200,0.003,63814.0,63813.0,0.04664565]
[1727059063401,0.004,63814.0,63813.0,0.04664565]
[1727059064208,0.082348,63814.0,63813.0,0.04664565]
[1727059064612,0.082348,63814.0,63811.0,0.0454]
[1727059064811,0.003,63814.0,63811.0,0.0454]
[1727059065016,0.004,63814.0,63811.0,0.0454]
[1727059065215,0.004,63814.0,63813.0,0.07835]
[1727059065510,0.004,63814.0,63813.0,0.17043109]
[1727059066009,0.004,63814.0,63813.0,0.07835]
[1727059066414,0.003,63814.0,63813.0,0.17049514]
[1727059066715,0.004,63814.0,63813.0,0.17049514]